Cogmind - Beta 14 @@@ ROGUE MODE // 2024.09.18 @ 11:30:16 Player: Dull Result: Destroyed self with Subdweller Shrapnel Launcher Performance ------------- Evolutions (0) 0 Regions Visited (2) 400 Robots Destroyed (27) 135 Value Destroyed (763) 763 Prototype IDs (11) 220 Alien Tech Used (0) 0 Bonus (0) 0 TOTAL SCORE: 1518 Bonus ------- None Cogmind --------- Core Integrity 0/250 Matter 156/300 Energy 74/250 System Corruption 2% Temperature Cool (0) Movement Core (550) Ox10 Location -10/Subcaves Parts ------- > --- POWER (1) -------- Ion Engine > --- PROPULSION (2) --- (None) > --- UTILITY (2) ------ Large Storage Unit > --- WEAPON (2) ------- Subdweller Shrapnel Launcher > --- INVENTORY (15) --- Ion Engine Light Treads Light Treads Disposable Heat Sink Disposable Heat Sink Large Storage Unit ECM Suite Gun Armor Shield Generator Medium Laser Medium Laser Hammer Peak State ------------ > --- POWER ------------ Ion Engine > --- PROPULSION ------- Light Treads Spiked Treads > --- UTILITY ---------- Large Storage Unit Shield Generator > --- WEAPON ----------- Subdweller Machine Gun Battle Cannon > --- INVENTORY -------- Ion Engine Ion Engine Light Treads Light Treads Disposable Heat Sink Disposable Heat Sink Large Storage Unit ECM Suite Light Armor Plating Gun Armor Shield Generator Shield Generator Medium Laser Medium Laser Hammer [Rating: 13] Favorites ----------- Power Ion Engine Engine Ion Engine Propulsion Light Treads Treads Light Treads Leg Aluminum Leg Utility Shield Generator Device Shield Generator Storage Large Storage Unit Protection Light Armor Plating Weapon Light Assault Rifle Energy Gun Medium Laser Ballistic Gun Light Assault Rifle Ballistic Cannon Battle Cannon Launcher Subdweller Shrapnel Launcher Build | -11 -10 -10 ------- Run | Yrd Mat Sub Slots Evolved . | . . . Power . | . . . Propulsion . | . . . Utility . | . . . Weapon . | . . . Parts Attached 25 | 4 9 12 Power 3 | . 1 2 Engine 3 | . 1 2 Core . | . . . Reactor . | . . . Propulsion 5 | 2 2 1 Treads 5 | 2 2 1 Leg . | . . . Wheel . | . . . Hover . | . . . Flight . | . . . Utility 7 | 1 4 2 Device 4 | 1 2 1 Storage 2 | . 2 . Processor . | . . . Hackware . | . . . Protection 1 | . . 1 Artifact . | . . . Weapon 10 | 1 2 7 Energy Gun 1 | . 1 . Energy Cannon . | . . . Ballistic Gun 7 | 1 1 5 Ballistic Cannon 1 | . . 1 Launcher 1 | . . 1 Special Weapon . | . . . Impact Weapon . | . . . Slashing Weapon . | . . . Piercing Weapon . | . . . Special Melee Weapon . | . . . Unidentified Prototypes . | . . . Parts Lost 9 | . 2 7 Power 1 | . . 1 Propulsion 3 | . 1 2 Utility 3 | . 1 2 Weapon 2 | . . 2 Highest Loss Streak 7 | . 1 7 To Critical Strikes 2 | . . 2 Average Slot Usage (%) 98 | . 98 99 Engine 13 | . 14 13 Treads 27 | . 27 27 Device 13 | . 12 13 Storage 14 | . 14 14 Energy Gun 3 | . 3 2 Ballistic Gun 22 | . 24 20 Ballistic Cannon 1 | . . 4 Peak Build Rating 13 | 9 10 13 Average Rating 9 | 6 8 11 On Entrance 8 | 6 9 10 Naked Turns . | . . . Heaviest Build 35 | 14 30 35 Greatest Support 40 | 40 40 40 Greatest Overweight (x) . | . . . Average Overweight (x) . | . . . Largest Inventory Capacity 15 | 8 15 15 Average Capacity 12 | 8 11 15 Most Carried 15 | 7 15 15 Average Carried 11 | 5 9 14 Final Capacity 15 | 8 15 15 Final Carried 15 | 3 15 12 Class Distribution -------------------- 100% | Mutant Dominant Class ---------------- Mutant | -10/Materials Mutant | -10/Subcaves Resources | -11 -10 -10 ----------- Run | Yrd Mat Sub Matter Collected 820 | 252 373 195 Remotely . | . . . Salvage Created 966 | 116 621 229 Parts 57 | 4 34 19 Haulers Intercepted 2 | . 2 . Recyclers Shooed 1 | 1 . . Parts Field Recycled . | . . . Retrieved Matter . | . . . Parts Self-Destructed 5 | . . 5 Prevented . | . . . Kills | -11 -10 -10 ------- Run | Yrd Mat Sub Combat Hostiles Destroyed 21 | . 14 7 Guns 18 | . 14 4 AOE 3 | . . 3 Classes Destroyed 7 | 2 4 1 Tunneler 2 | 2 . . Hauler 2 | . 2 . Recycler 1 | 1 . . Watcher 1 | . 1 . Swarmer 3 | . 3 . Grunt 11 | . 11 . Subdweller 7 | . . 7 Best Kill Streak 3 | 2 3 3 Combat Bots Only 3 | . 2 3 Max Kills in Single Turn 1 | 1 1 1 Gunslinging . | . . . Exploded 1 | . . 1 Melee . | . . . Uniques/NPCs Destroyed . | . . . Combat | -11 -10 -10 -------- Run | Yrd Mat Sub Hostile Shots Fired 133 | . 75 58 Missed 33 | . 19 14 Damage Taken 1521 | . 511 1010 Core 286 | . 77 209 Absorbed by Shields 257 | . 124 133 Regen/Repaired (Parts) 132 | . 132 . Core Remaining (%) 100 | 100 . . Volleys Fired 115 | 8 78 29 Largest 2 | 2 2 2 Hottest 70 | 40 70 70 Shots Fired 226 | 16 155 55 Gun 206 | 16 155 35 Cannon 16 | . . 16 Launcher 4 | . . 4 Special . | . . . Kinetic 210 | 16 141 53 Thermal 16 | . 14 2 Explosive . | . . . Electromagnetic . | . . . Robot Hit Streak 14 | 4 14 10 Robot Miss Streak 8 | 2 8 1 Penetration Max . | . . . Secondary Targets . | . . . Shots Hit Robots 137 | 9 96 32 Core Hits 58 | 5 40 13 Critical Kills . | . . . Critical Parts Destroyed . | . . . Critical Strikes 5 | . . 5 Destroy 2 | . . 2 Blast 3 | . . 3 Melee Attacks . | . . . Impact . | . . . Slashing . | . . . Piercing . | . . . Sneak Attacks . | . . . Combat Hostiles . | . . . Follow-up Attacks . | . . . Damage Inflicted 1909 | 83 988 838 Guns 1374 | 83 988 303 Cannons 169 | . . 169 Explosions 366 | . . 366 Melee . | . . . Ramming . | . . . Kinetic 1790 | 83 882 825 Thermal 119 | . 106 13 Explosive . | . . . Electromagnetic . | . . . Impact . | . . . Slashing . | . . . Piercing . | . . . Highest Corruption 2 | . 2 2 Average Corruption 2 | . 2 2 Corruption Purged . | . . . Corruption Blocked . | . . . Effects 19 | . 3 16 Message Errors 6 | . 2 4 Matter Fused 4 | . 1 3 Heat Flow Errors 2 | . . 2 Energy Discharges 3 | . . 3 Data Loss (minor) 2 | . . 2 Misfires 2 | . . 2 Overload Shots . | . . . Overflow Damage 1 | . . 1 Projectiles . | . . . Explosions 1 | . . 1 Melee . | . . . Knockbacks 3 | . . 3 Impact . | . . . Kinetic 3 | . . 3 Secondary . | . . . Self-Inflicted Damage 162 | . . 162 Shots 4 | . . 4 Rammed . | . . . Targets Rammed . | . . . Kicked . | . . . Crushed . | . . . Highest Temperature 227 | . 156 227 Average Temperature 49 | . 41 121 Received Heat Transfer 387 | . 225 162 Siege Activations . | . . . Robots Corrupted . | . . . Combat Hostiles . | . . . Parts Fried . | . . . Impact Corruptions . | . . . Robots Melted . | . . . Combat Hostiles . | . . . Parts Melted . | . . . Heat Transferred 333 | . 296 37 Parts Sabotaged . | . . . Parts Stolen . | . . . Parts Stripped . | . . . Power Chain Reactions . | . . . Alert | -11 -10 -10 ------- Run | Yrd Mat Sub Peak Influence 214 | 15 214 . Initial 9 | . 9 . Average 90 | 10 94 . Maximum Alert Level 1 | . 1 . Low Security (%) 88 | 100 88 . Level 1 11 | . 11 . Level 2 . | . . . Level 3 . | . . . Level 4 . | . . . Level 5 . | . . . High Security . | . . . Max Security . | . . . Squads Dispatched 3 | . 3 . Investigation 1 | . 1 . Extermination . | . . . Reinforcement 2 | . 2 . Assault . | . . . Garrison . | . . . Intercept . | . . . Searches Triggered . | . . . Construction Impeded . | . . . Haulers Reinforced . | . . . Active Scanning Responses . | . . . Cargo Convoy Interrupts . | . . . Stealth | -11 -10 -10 --------- Run | Yrd Mat Sub Distress Signals 6 | . 6 . Communications Jammed . | . . . Distress Signals . | . . . Times Spotted 38 | . 28 10 Peak Tracking Total 5 | . 5 5 Tactical Retreats 4 | . 4 . Traps | -11 -10 -10 ------- Run | Yrd Mat Sub Traps Triggered 2 | . 1 1 Indirectly . | . . . Trap Hack Attempts . | . . . Triggered . | . . . Disarmed . | . . . Reprogrammed . | . . . Reused . | . . . Traps Extracted . | . . . Installed . | . . . Triggered . | . . . Machines | -11 -10 -10 ---------- Run | Yrd Mat Sub Machines Disabled 1 | . . 1 Max in Single Turn 1 | . . 1 Machines Repaired . | . . . Machines Dismantled . | . . . Machines Sabotaged . | . . . Overloaded Fab Kills . | . . . Hacking | -11 -10 -10 --------- Run | Yrd Mat Sub Machines Accessed 11 | . 9 2 Terminals 6 | . 6 . Fabricators . | . . . Repair Stations 1 | . 1 . Recycling Units 2 | . 2 . Scanalyzers . | . . . Garrison Access . | . . . Total Hacks 44 | . 30 14 Successful 31 | . 17 14 Failed 12 | . 12 . Catastrophic . | . . . Database Lockouts 1 | . 1 . Manual 23 | . 23 . Terminals 16 | . 16 . Fabricators . | . . . Repair Stations 5 | . 5 . Recycling Units 9 | . 9 . Scanalyzers . | . . . Garrison Access . | . . . Terminal Hacks 15 | . 1 14 Record 13 | . . 13 Robot Analysis 1 | . 1 . Derelict Proto ID Bank 1 | . . 1 Fabricator Hacks . | . . . Repair Station Hacks 4 | . 4 . Scan Component 2 | . 2 . Repair 2 | . 2 . Recycling Unit Hacks 1 | . 1 . Retrieve Components 1 | . 1 . Scanalyzer . | . . . Garrison Access Hacks . | . . . Unauthorized Hacks 11 | . 11 . Terminals 6 | . 6 . Botnet 6 | . 6 . Fabricators . | . . . Repair Stations . | . . . Recycling Units 5 | . 5 . Monitor 1 | . 1 . Reject 2 | . 2 . Mask 2 | . 2 . Scanalyzers . | . . . Garrison Access . | . . . Data Cores Recovered . | . . . Used . | . . . Hacking Detections 8 | . 8 . Full Trace Events 2 | . 2 . Feedback Events . | . . . Feedback Blocked . | . . . Robot Schematics Acquired . | . . . Robots Built . | . . . Authchips . | . . . Time . | . . . Total Robot Build Rating . | . . . Part Schematics Acquired . | . . . Parts Built . | . . . Authchips . | . . . Time . | . . . Total Part Build Rating . | . . . Parts Repaired 2 | . 2 . Time 52 | . 52 . Parts Recycled . | . . . Recycled Matter . | . . . Retrieved Matter . | . . . Retrieved Components 3 | . 3 . Parts Scanalyzed . | . . . Part Schematics Acquired . | . . . Parts Damaged . | . . . Bothacking | -11 -10 -10 ------------ Run | Yrd Mat Sub Used RIF Installer . | . . . Robots Hacked . | . . . Non-combat . | . . . Combat . | . . . Robot Hacks Applied . | . . . Relay Couplers Released . | . . . Fabnet Peak Effective % . | . . . Robots Rewired . | . . . Allies Hacked . | . . . Hacks Repelled . | . . . Allies | -11 -10 -10 -------- Run | Yrd Mat Sub Total Allies . | . . . Largest Group . | . . . Highest-Rated Group . | . . . Highest-Rated Ally . | . . . Total Orders . | . . . Ally Attacks . | . . . Total Damage . | . . . Kills . | . . . Allies Corrupted . | . . . Allies Melted . | . . . Intel | -11 -10 -10 ------- Run | Yrd Mat Sub Robot Analysis Total 1 | . 1 . Derelict Logs Recovered 2 | . . 2 Drone Launches . | . . . Drone Recoveries . | . . . Exploration | -11 -10 -10 ------------- Run | Yrd Mat Sub Turns Passed 3318 | 110 2030 1178 Spaces Moved 1670 | 67 979 624 Core . | . . . Treads 1604 | 1 979 624 Legs 66 | 66 . . Wheels . | . . . Hover . | . . . Flight . | . . . Fastest Speed 120 | 120 160 160 Average Speed 158 | 120 160 160 Slowest Speed 160 | 160 160 160 Overloaded Moves . | . . . Propulsion Burnouts . | . . . Robots Hopped . | . . . Cave-ins Triggered . | . . . Exploration Rate (%) 46 | 3 99 36 Regions Visited 2 Branch Regions 1 Pre-discovered Areas . | . . . Known Exits Taken . | . . . Unknown Exits Taken 2 | 1 1 . Scrap Searched 6 | . . 6 Spaces Dug . | . . . Terrain Destroyed 29 | . . 29 Melee . | . . . Projectile . | . . . AOE 29 | . . 29 Terrain Rammed . | . . . Walls Destroyed . | . . . Machines Disabled . | . . . Actions | -11 -10 -10 --------- Run | Yrd Mat Sub Total 2140 | 82 1304 754 Wait 287 | . 212 75 Move 1668 | 66 978 624 Hop . | . . . Pick Up 24 | 1 18 5 Fast Attach 4 | . 4 . Attach 5 | 1 1 3 Detach . | . . . Swap 16 | 3 4 9 Drop 21 | 3 9 9 Fire 115 | 8 78 29 Melee . | . . . Ram . | . . . Kick . | . . . Crush . | . . . Escape Stasis . | . . . Rewire . | . . . Trap . | . . . Miscellaneous . | . . . Route ------- -11/Scrapyard -10/Materials (discovered 6 exits: [*Mat x3] / [*Min x2] / *Sub) -10/Subcaves History --------- Turn | Location | Event 1 | -11/Scrapyard | Discovered new exit (range 2) 111 | -11/Scrapyard | Entered Materials 317 | -10/Materials | Build established: Mutant 437 | -10/Materials | Discovered new exit (range 4) 891 | -10/Materials | Discovered new exit (range 12) 1113 | -10/Materials | Discovered new exit (range 8) 1223 | -10/Materials | Discovered new exit (range 4) 1430 | -10/Materials | Discovered new exit (range 14) 1689 | -10/Materials | Discovered new exit (range 14) 1708 | -10/Materials | Central database locked down 2052 | -10/Materials | Repaired Lgt. Assault Rifle 2080 | -10/Materials | Repaired Lgt. Treads 2141 | -10/Materials | Entered Subcaves 2342 | -10/Subcaves | Shifting Twisted Machinery released Sub. Machine Gun 2433 | -10/Subcaves | Learned Materials stockpile data 2514 | -10/Subcaves | Shifting Twisted Machinery released Sub. Laser 2538 | -10/Subcaves | Learned location of 2 exits from Materials 2598 | -10/Subcaves | Visited 4L-MR0's lab 2636 | -10/Subcaves | Found Gun Armor 3054 | -10/Subcaves | Visited Clippyterm 3058 | -10/Subcaves | Learned Factory emergency access door positions 3058 | -10/Subcaves | Learned Factory garrison access intel 3281 | -10/Subcaves | A Subdweller sparked back to life 3281 | -10/Subcaves | A Subdweller sparked back to life 3297 | -10/Subcaves | Core integrity fell below 50% 3317 | -10/Subcaves | Core integrity fell below 20% 3317 | -10/Subcaves | Ambushed by Subdweller buried in earth 3319 | -10/Subcaves | Destroyed self with Subdweller Shrapnel Launcher Last Messages --------------- 03293_ RC-UG8(R) affixes Scrap Shield Fragment to Scrap Shield. 03293_ UW-O9T(R) Sub. Monowheel blasted off. 03293_ UW-O9T(R) knocked back. 03296_ UW-O9T(R) destroyed. 03300_ Critical hit (Destroy). 03300_ Spk. Treads destroyed. 03303_ 0C-2UZ(R) affixes Scrap Shield Fragment to Scrap Shield. 03304_ 1F-34L(R) knocked back. 03306_ Shield Generator destroyed. 03307_ Ion Engine destroyed. 03309_ Battle Cannon destroyed. 03310_ Critical hit (Destroy). 03310_ Sub. Machine Gun destroyed. 03313_ 0C-2UZ(R) destroyed. 03313_ Lgt. Armor Plating destroyed. 03315_ XF-S2V(R) destroyed. 03317_ RC-UG8(R) destroyed. 03317_ Lgt. Treads destroyed. 03317_ Destroyed Lgt. Treads. 03318_ 12-872(R): "GOODGOOD!" Map ----- +----------------------------------------------------+ | ???????????????###??###??## #???????????? | | ???????????????????????### #???????????? | | ??????????????????###?## #???????????? | | ??????????????????# ### #???????????? | | ??????????????????# ##???????????? | | ?????????????????## ###????????????? | | ????????????????## ####???????????? | | ????????????????# #???????????? | | ????????????????# #???????????? | | ???????????????## ### ## #???????????? | | ???????????????# =#?#### ##???????????? | | ???????????????# !&#????## ##????????????? | | ???????????????# & ###??## #?????????????? | | ???????????????# ! #### # #?????????????? | | ???????????????# # #?????????????? | | ???????????????# ##?????????????? | | ???????????????##### # #??????????????? | | ???????????????### # ## #??????????????? | | ???????????????# #??????????????? | | ???????????????# #??????????????? | | ???????????????# ##??????????????? | | ???????????????# ##???????????????? | | ???????????????# !% #<###?????????????? | | ??????????????##; &! """?????????????? | | ??????????????# R & "<"